fUST/lending_fUST_20250725
["ID","MTS","AMOUNT","RATE_DAILY","PERIOD"]
[374633435,1753389049598,-460.0,0.00020043,2]
[374633436,1753389049608,-460.0,0.00020043,2]
[374633437,1753389049618,-460.0,0.00020043,2]
[374633438,1753389049627,-460.0,0.00020043,2]
[374633439,1753389049637,-460.0,0.00020043,2]
[374633440,1753389049647,-460.0,0.00020043,2]
[374633441,1753389049657,-711.15,0.00020043,2]
[374633442,1753389049667,-460.0,0.00020043,2]
[374633443,1753389049677,-460.0,0.00020043,2]
[374633444,1753389049687,-473.41425427,0.00020043,2]
[374633445,1753389049697,-460.0,0.00020043,2]
[374633446,1753389049707,-460.0,0.00020043,2]
[374633447,1753389049717,-1736.23,0.00020043,2]
[374633448,1753389049727,-1856.06,0.00020043,2]
[374633449,1753389049737,-698.26,0.00020043,2]
[374633450,1753389049748,-974.06,0.00020043,2]
[374633451,1753389049758,-797.93,0.00020043,2]
[374633452,1753389049768,-460.0,0.00020043,2]
[374633453,1753389049778,-1177.96,0.00020043,2]
[374633454,1753389049787,-460.0,0.00020043,2]
[374633455,1753389049797,-460.0,0.00020043,2]
[374633456,1753389049807,-460.0,0.00020043,2]
[374633457,1753389049908,-460.0,0.00020043,2]
[374633458,1753389049920,-460.0,0.00020043,2]
[374633459,1753389049931,-3133.23,0.00020043,2]
[374633460,1753389049940,-474.29,0.00020043,2]
[374633461,1753389049953,-460.0,0.00020043,2]
[374633462,1753389049963,-600.81,0.00020043,2]
[374633463,1753389049973,-460.0,0.00020043,2]
[374633464,1753389049983,-460.0,0.00020043,2]
[374633465,1753389049994,-2025.28,0.00020043,2]
[374633466,1753389050004,-968.26,0.00020043,2]
[374633467,1753389050015,-1060.02,0.00020043,2]
[374633468,1753389050026,-994.38,0.00020043,2]
[374633469,1753389050036,-3002.89,0.00020043,2]
[374633470,1753389050047,-460.0,0.00020043,2]
[374633471,1753389050059,-460.0,0.00020043,2]
[374633472,1753389050069,-849.41,0.00020043,2]
[374633473,1753389050080,-460.0,0.00020043,2]
[374633474,1753389050089,-460.0,0.00020043,2]
[374633475,1753389050100,-2995.49,0.00020043,2]
[374633476,1753389050112,-460.0,0.00020043,2]
[374633477,1753389050123,-779.45,0.00020043,2]
[374633478,1753389050134,-460.0,0.00020043,2]
[374633479,1753389050145,-460.0,0.00020043,2]
[374633480,1753389050155,-513.77,0.00020043,2]
[374633481,1753389050165,-460.0,0.00020043,2]
[374633482,1753389050175,-214.13485886,0.00020043,2]
[374633483,1753389050186,-931.68,0.00020043,2]
[374633484,1753389050196,-1087.62,0.00020043,2]
[374633485,1753389050206,-460.0,0.00020043,2]
[374633486,1753389050216,-518.14,0.00020043,2]
[374633487,1753389050227,-960.43,0.00020043,2]
[374633488,1753389050236,-460.0,0.00020043,2]
[374633489,1753389050246,-165.91232162,0.00020044,2]
[374633490,1753389050255,-460.0,0.00020044,2]
[374633491,1753389050265,-460.0,0.00020044,2]
[374633492,1753389050276,-460.0,0.00020044,2]
[374633493,1753389050286,-460.0,0.00020044,2]
[374633494,1753389050295,-522.06,0.00020044,2]
[374633495,1753389050305,-476.49,0.00020044,2]
[374633496,1753389050318,-460.0,0.00020044,2]
[374633497,1753389050328,-460.0,0.00020044,2]
[374633498,1753389050338,-460.0,0.00020044,2]
[374633499,1753389050349,-460.0,0.00020044,2]
[374633500,1753389050359,-460.0,0.00020044,2]
[374633501,1753389050369,-470.02,0.00020044,2]
[374633502,1753389050379,-192.46625259,0.00020044,2]
[374633503,1753389050389,-460.0,0.00020044,2]
[374633504,1753389050399,-460.0,0.00020044,2]
[374633505,1753389050409,-460.0,0.00020044,2]
[374633506,1753389050419,-733.25,0.00020044,2]
[374633507,1753389050428,-460.0,0.00020044,2]
[374633508,1753389050439,-2677.68,0.00020044,2]
[374633509,1753389050449,-460.0,0.00020044,2]
[374633510,1753389050459,-2195.58,0.00020044,2]
[374633511,1753389050469,-460.0,0.00020044,2]
[374633512,1753389050480,-460.0,0.00020044,2]
[374633513,1753389050489,-875.24,0.00020044,2]
[374633514,1753389050499,-460.0,0.00020044,2]
[374633515,1753389050508,-460.0,0.00020044,2]
[374633516,1753389050517,-460.0,0.00020044,2]
[374633517,1753389050527,-151.0,0.00020044,2]
[374633518,1753389050537,-460.0,0.00020044,2]
[374633519,1753389050547,-614.59,0.00020044,2]
[374633520,1753389050557,-151.0,0.00020044,2]
[374633521,1753389050567,-151.0,0.00020044,2]
[374633522,1753389050576,-3151.07377128,0.00020072,2]
[374633523,1753389050586,-219.45110106,0.0002011,2]
[374633524,1753389050597,-606.03573366,0.00020126,2]
[374633525,1753389050608,-460.0,0.00020141,2]
[374633526,1753389050619,-460.0,0.00020141,2]
[374633527,1753389050629,-460.0,0.00020141,2]
[374633528,1753389050639,-460.0,0.00020141,2]
[374633529,1753389050649,-460.0,0.00020142,2]
[374633530,1753389050660,-745.67,0.00020142,2]
[374633531,1753389050670,-460.0,0.00020142,2]
[374633532,1753389050679,-460.0,0.00020142,2]
[374633533,1753389050690,-460.0,0.00020142,2]
[374633534,1753389050702,-460.0,0.00020142,2]
[374633535,1753389050711,-1443.36,0.00020142,2]
[374633536,1753389050721,-460.0,0.00020142,2]
[374633537,1753389050731,-460.0,0.00020142,2]
[374633538,1753389050740,-581.91,0.00020142,2]
[374633539,1753389050750,-460.0,0.00020142,2]
[374633540,1753389050759,-460.0,0.00020142,2]
[374633541,1753389050769,-460.0,0.00020142,2]
[374633542,1753389050778,-460.0,0.00020142,2]
[374633543,1753389050788,-460.0,0.00020142,2]
[374633544,1753389050797,-460.0,0.00020142,2]
[374633545,1753389050807,-460.0,0.00020142,2]
[374633546,1753389050819,-460.0,0.00020142,2]
[374633547,1753389050828,-460.0,0.00020142,2]
[374633548,1753389050837,-1134.46,0.00020142,2]
[374633549,1753389050847,-460.0,0.00020142,2]
[374633550,1753389050857,-460.0,0.00020142,2]
[374633551,1753389050867,-460.0,0.00020142,2]
[374633552,1753389050881,-460.0,0.00020142,2]
[374633553,1753389050891,-460.0,0.00020142,2]
[374633554,1753389050900,-460.0,0.00020142,2]
[374633555,1753389050909,-460.0,0.00020142,2]
[374633556,1753389050921,-460.0,0.00020142,2]
[374633557,1753389050931,-460.0,0.00020142,2]
[374633558,1753389050943,-460.0,0.00020145,2]
[374633559,1753389050953,-1094.36,0.00020145,2]
[374633560,1753389050964,-746.37,0.00020145,2]
[374633561,1753389050975,-460.0,0.00020145,2]
[374633562,1753389050984,-460.0,0.00020145,2]
[374633563,1753389050993,-453.40718438,0.00020145,2]
[374633564,1753389051003,-460.0,0.00020145,2]
[374633565,1753389051012,-301.5983,0.00020187,2]
[374633566,1753389051022,-3151.07377128,0.00020245,2]
[374633567,1753389051031,-4623.25204825,0.00020294,2]
[374633568,1753389051040,-151.0,0.000203,4]
[374633569,1753389051050,-460.0,0.00020315,2]
[374633570,1753389051059,-601.15,0.00020315,2]
[374633571,1753389051069,-645.07,0.00020315,2]
[374633572,1753389051080,-460.0,0.00020315,2]
[374633573,1753389051088,-682.46,0.00020315,2]
[374633574,1753389051097,-460.0,0.00020315,2]
[374633575,1753389051108,-460.0,0.00020315,2]
[374633576,1753389051122,-7953.31,0.00020315,2]
[374633577,1753389051139,-460.0,0.00020315,2]
[374633578,1753389051157,-2801.23,0.00020315,2]
[374633579,1753389051173,-460.0,0.00020315,2]
[374633580,1753389051191,-460.0,0.00020315,2]
[374633581,1753389051212,-612.35,0.00020315,2]
[374633582,1753389051231,-769.11,0.00020315,2]
[374633583,1753389051249,-2563.23,0.00020315,2]
[374633584,1753389051260,-575.41643619,0.00020315,2]
[374633585,1753389051271,-460.0,0.00020315,2]
[374633586,1753389051283,-3081.33,0.00020315,2]
[374633587,1753389051293,-460.0,0.00020315,2]
[374633588,1753389051304,-718.43,0.00020315,2]
[374633589,1753389051316,-460.0,0.00020315,2]
[374633590,1753389051328,-460.0,0.00020315,2]
[374633591,1753389051339,-460.0,0.00020316,2]
[374633592,1753389051349,-460.0,0.00020316,2]
[374633593,1753389051360,-460.0,0.00020316,2]
[374633594,1753389051370,-460.0,0.00020316,2]
[374633595,1753389051381,-2220.01,0.00020316,2]
[374633596,1753389051392,-460.0,0.00020316,2]
[374633597,1753389051403,-460.0,0.00020316,2]
[374633598,1753389051413,-460.0,0.00020316,2]
[374633599,1753389051423,-2050.54,0.00020316,2]
[374633600,1753389051433,-936.79,0.00020316,2]
[374633601,1753389051444,-853.52,0.00020316,2]
[374633602,1753389051455,-518.34,0.00020316,2]
[374633603,1753389051466,-460.0,0.00020316,2]
[374633604,1753389051476,-678.23,0.00020316,2]
[374633605,1753389051485,-1208.71,0.00020316,2]
[374633606,1753389051496,-290.74670208,0.00020316,2]
[374633607,1753389051505,-460.0,0.00020316,2]
[374633608,1753389051515,-460.0,0.00020316,2]
[374633609,1753389051526,-460.0,0.00020316,2]
[374633610,1753389051536,-861.27,0.00020316,2]
[374633611,1753389051546,-764.72,0.00020316,2]
[374633612,1753389051556,-460.0,0.00020316,2]
[374633613,1753389051566,-5976.16,0.00020316,2]
[374633614,1753389051576,-460.0,0.00020317,2]
[374633615,1753389051585,-494.81,0.00020317,2]
[374633616,1753389051595,-460.0,0.00020317,2]
[374633617,1753389051604,-460.0,0.00020317,2]
[374633618,1753389051614,-491.9,0.00020317,2]
[374633619,1753389051623,-460.0,0.00020317,2]
[374633620,1753389051634,-888.2,0.00020317,2]
[374633621,1753389051644,-460.0,0.00020317,2]
[374633622,1753389051653,-460.0,0.00020317,2]
[374633623,1753389051662,-460.0,0.00020317,2]
[374633624,1753389051671,-460.0,0.00020317,2]
[374633625,1753389051682,-460.0,0.00020317,2]
[374633626,1753389051692,-460.0,0.00020317,2]
[374633627,1753389051703,-460.0,0.00020317,2]
[374633628,1753389051713,-460.0,0.00020317,2]
[374633629,1753389051722,-711.15,0.00020317,2]
[374633630,1753389051732,-460.0,0.00020317,2]
[374633631,1753389051742,-460.0,0.00020317,2]
[374633632,1753389051753,-460.0,0.00020317,2]
[374633633,1753389051765,-460.0,0.00020317,2]
[374633634,1753389051775,-1736.23,0.00020317,2]
[374633635,1753389051784,-1856.06,0.00020317,2]
[374633636,1753389051795,-698.26,0.00020317,2]
[374633637,1753389051805,-974.06,0.00020317,2]
[374633638,1753389051815,-797.93,0.00020317,2]
[374633639,1753389051826,-460.0,0.00020317,2]
[374633640,1753389051918,-1177.96,0.00020317,2]
[374633641,1753389051929,-460.0,0.00020317,2]
[374633642,1753389051938,-460.0,0.00020317,2]
[374633643,1753389051950,-460.0,0.00020317,2]
[374633644,1753389051961,-460.0,0.00020317,2]
[374633645,1753389051971,-460.0,0.00020317,2]
[374633646,1753389051984,-3133.23,0.00020317,2]
[374633647,1753389051994,-474.29,0.00020317,2]
[374633648,1753389052003,-460.0,0.00020317,2]
[374633649,1753389052014,-600.81,0.00020317,2]
[374633650,1753389052025,-460.0,0.00020317,2]
[374633651,1753389052036,-460.0,0.00020317,2]
[374633652,1753389052047,-2025.28,0.00020317,2]
[374633653,1753389052058,-968.26,0.00020317,2]
[374633654,1753389052067,-1060.02,0.00020317,2]
[374633655,1753389052078,-994.38,0.00020317,2]
[374633656,1753389052088,-3002.89,0.00020317,2]
[374633657,1753389052097,-460.0,0.00020317,2]
[374633658,1753389052108,-460.0,0.00020317,2]
[374633659,1753389052117,-849.41,0.00020317,2]
[374633660,1753389052127,-460.0,0.00020317,2]
[374633661,1753389052137,-464.63859633,0.00020317,2]
[374633662,1753389052147,-2995.49,0.00020317,2]
[374633663,1753389052156,-460.0,0.00020317,2]
[374633664,1753389052165,-779.45,0.00020317,2]
[374633665,1753389052175,-460.0,0.00020317,2]
[374633666,1753389052184,-460.0,0.00020317,2]
[374633667,1753389052194,-513.77,0.00020317,2]
[374633668,1753389052204,-460.0,0.00020317,2]
[374633669,1753389052214,-931.68,0.00020317,2]
[374633670,1753389052224,-497.68071026,0.00020317,2]
[374633671,1753389137019,306.65587998,0.0002615,120]
[374633672,1753389188483,157.7915418,0.0001812,2]
[374633673,1753389211709,246.76826557,0.000189,2]
[374633674,1753389216082,7034.0741179,0.0001812,2]
[374633675,1753389217973,156.4720611,0.00018978,2]
[374633676,1753389226306,5000.0,0.00019,2]
[374633677,1753389226424,363.5869999,0.00018506,2]
[374633678,1753389241932,2731.0,0.00019,2]
[374633679,1753389279224,1643.64881945,0.00018977,2]
[374633680,1753389284358,250.0,0.00017865,2]
[374633681,1753389300133,9662.87658167,0.00018118,2]
[374633682,1753389300154,15237.12341833,0.00018118,2]
[374633683,1753389300286,176.06238602,0.00018819,2]
[374633685,1753389360776,318.655777,0.00013699,2]
[374633686,1753389390629,210.80178908,0.00018977,2]
[374633687,1753389399090,14057.35662957,0.00018118,2]
[374633688,1753389399112,8785.85335663,0.00018118,2]
[374633689,1753389513097,401.10489416,0.000189,2]
[374633690,1753389529297,294.64165463,0.00018504,2]
[374633691,1753389618765,11011.7707442,0.00018094,2]
[374633692,1753389817060,267.40326277,0.000189,2]
[374633693,1753389831622,176.78499278,0.00018502,2]
[374633694,1753390015636,156.4720611,0.00018961,2]
[374633695,1753390031092,-189.93047499,0.00019011,2]
[374633696,1753390031113,-440.76393697,0.00019061,2]
[374633697,1753390031134,-87.98393232,0.00019071,2]
[374633699,1753390043197,-1112.01606768,0.00019071,2]
[374633700,1753390043218,-300.0,0.00019072,2]
[374633701,1753390043239,-300.0,0.00019072,2]
[374633702,1753390043260,-300.0,0.00019072,2]
[374633703,1753390043283,-1200.0,0.00019072,2]
[374633704,1753390043304,-300.0,0.00019072,2]
[374633705,1753390043328,-300.0,0.00019072,2]
[374633706,1753390043350,-161.37557727,0.00019072,2]
[374633707,1753390046125,-338.62442273,0.00019072,2]
[374633708,1753390046146,-481.38145381,0.00019072,2]
[374633710,1753390076700,8905.96903373,0.00018148,2]
[374633711,1753390076723,1094.03096627,0.00018148,2]
[374633712,1753390118740,178.26884185,0.000189,2]
[374633713,1753390207358,255.0,0.00018917,2]
[374633828,1753390237414,-178.3929195,0.00019011,2]
[374633831,1753390237425,-300.0,0.0001907,2]
[374633833,1753390237434,-300.0,0.0001907,2]
[374633834,1753390237446,-1200.0,0.0001907,2]
[374633835,1753390237456,-300.0,0.0001907,2]
[374633836,1753390237467,-500.0,0.0001907,2]
[374633837,1753390237480,-461.03648617,0.0001907,2]
[374633838,1753390237489,-1.1681901,0.0001907,2]
[374633839,1753390237503,-360.33485974,0.0001907,2]
[374633840,1753390237516,-65.84514026,0.0001907,2]
[374633841,1753390237529,-434.15485974,0.0001907,2]
[374633842,1753390237545,-500.0,0.0001907,2]
[374633843,1753390237560,-174.1904097,0.0001907,2]
[374633844,1753390237585,-325.8095903,0.0001907,2]
[374633845,1753390237604,-500.0,0.0001907,2]
[374633846,1753390237625,-500.0,0.0001907,2]
[374633847,1753390237649,-288.19334537,0.0001907,2]
[374633850,1753390237666,-500.0,0.0001907,2]
[374633852,1753390237677,-500.0,0.0001907,2]
[374633854,1753390237687,-500.0,0.0001907,2]
[374633856,1753390237697,-500.0,0.0001907,2]
[374633858,1753390237707,-500.0,0.0001907,2]
[374633860,1753390237717,-500.0,0.0001907,2]
[374633862,1753390237727,-500.0,0.0001907,2]
[374633864,1753390237737,-516.69351908,0.0001907,2]
[374633865,1753390237746,-500.0,0.0001907,2]
[374633866,1753390237756,-500.0,0.0001907,2]
[374633867,1753390237765,-500.0,0.0001907,2]
[374633868,1753390237775,-618.3627981,0.0001907,2]
[374633869,1753390237785,-500.0,0.0001907,2]
[374633870,1753390237795,-500.0,0.0001907,2]
[374633871,1753390237969,-500.0,0.0001907,2]
[374633872,1753390237980,-500.0,0.0001907,2]
[374633873,1753390237990,-500.0,0.0001907,2]
[374633874,1753390238001,-500.0,0.0001907,2]
[374633875,1753390238012,-500.0,0.0001907,2]
[374633876,1753390238023,-500.0,0.0001907,2]
[374633877,1753390238034,-500.0,0.0001907,2]
[374633878,1753390238047,-500.0,0.0001907,2]
[374633879,1753390238058,-500.0,0.0001907,2]
[374633880,1753390238068,-500.0,0.0001907,2]
[374633881,1753390238079,-500.0,0.0001907,2]
[374633882,1753390238089,-500.0,0.0001907,2]
[374633883,1753390238098,-621.2704432,0.0001907,2]
[374633884,1753390238108,-306.17661597,0.0001907,2]
[374633885,1753390238117,-500.0,0.0001907,2]
[374633886,1753390238127,-160.22889375,0.000191,2]
[374633887,1753390238136,-182.86461466,0.0001911,2]
[374633888,1753390238146,-500.0,0.00019111,3]
[374633889,1753390238156,-154.16,0.00019111,3]
[374633891,1753390238171,-462.5,0.00019111,3]
[374633892,1753390238182,-383.24,0.00019111,3]
[374633893,1753390238192,-179.73,0.00019111,3]
[374633894,1753390238202,-539.21,0.00019111,3]
[374633895,1753390238212,-672.8,0.00019111,3]
[374633896,1753390238223,-895.49,0.00019111,3]
[374633897,1753390238236,-482.81167711,0.0001912,2]
[374633898,1753390238246,-19639.3143048,0.00019121,2]
[374633920,1753390238683,-350360.6856952,0.00019121,2]
[374633921,1753390238694,-500.0,0.00019173,2]
[374633922,1753390238704,-500.0,0.00019173,2]
[374633923,1753390238714,-500.0,0.00019173,2]
[374633924,1753390238724,-500.0,0.00019173,2]
[374633925,1753390238738,-500.0,0.00019173,2]
[374633926,1753390238748,-460.0,0.00019178,2]
[374633927,1753390238758,-408.6770234,0.00019178,2]
[374633928,1753390238768,-460.0,0.00019178,2]
[374633929,1753390238778,-460.0,0.00019178,2]
[374633930,1753390238788,-460.0,0.00019178,2]
[374633931,1753390238798,-460.0,0.00019178,2]
[374633932,1753390238807,-460.0,0.00019178,2]
[374633933,1753390238817,-317.21469776,0.00019178,2]
[374633934,1753390238826,-460.0,0.00019178,2]
[374633935,1753390238835,-462.33,0.00019178,2]
[374633936,1753390238845,-460.0,0.00019178,2]
[374633937,1753390238854,-460.0,0.00019178,2]
[374633938,1753390238863,-170.87422077,0.00019178,2]
[374633939,1753390238872,-460.0,0.00019178,2]
[374633940,1753390238881,-460.0,0.00019178,2]
[374633941,1753390238890,-460.0,0.00019178,2]
[374633942,1753390238899,-460.0,0.00019178,2]
[374633943,1753390238909,-460.0,0.00019178,2]
[374633944,1753390238918,-460.0,0.00019178,2]
[374633945,1753390238927,-460.0,0.00019178,2]
[374633946,1753390238938,-460.0,0.00019178,2]
[374633947,1753390238948,-460.0,0.00019178,2]
[374633948,1753390238958,-462.26943899,0.00019178,2]
[374633949,1753390238967,-460.0,0.00019178,2]
[374633950,1753390238976,-460.0,0.00019178,2]
[374633951,1753390238989,-460.0,0.00019178,2]
[374633952,1753390238997,-462.31238432,0.00019178,2]
[374633953,1753390239006,-460.0,0.00019178,2]
[374633955,1753390239016,-470.62363547,0.00019178,2]
[374633957,1753390239025,-436.73093853,0.00019178,2]
[374633959,1753390239035,-460.0,0.00019178,2]
[374633961,1753390239044,-460.0,0.00019178,2]
[374633963,1753390239054,-460.0,0.00019178,2]
[374633965,1753390239063,-460.0,0.00019178,2]
[374633967,1753390239073,-460.0,0.00019178,2]
[374633969,1753390239082,-351.9727044,0.00019178,2]
[374633971,1753390239092,-464.0589326,0.00019178,2]
[374633973,1753390239101,-460.0,0.00019178,2]
[374633975,1753390239111,-460.0,0.00019178,2]
[374633977,1753390239120,-466.20701381,0.00019178,2]
[374633979,1753390239129,-281.73161477,0.00019178,2]
[374633981,1753390239139,-460.0,0.00019178,2]
[374633983,1753390239148,-460.0,0.00019178,2]
[374633985,1753390239158,-460.0,0.00019178,2]
[374633987,1753390239167,-461.66446139,0.00019178,2]
[374633989,1753390239177,-460.0,0.00019178,2]
[374633991,1753390239186,-460.0,0.00019178,2]
[374633993,1753390239196,-508.15,0.00019178,2]
[374633995,1753390239206,-461.91117377,0.00019178,2]
[374633996,1753390239216,-460.0,0.00019178,2]
[374633997,1753390239225,-460.0,0.00019178,2]
[374633998,1753390239238,-460.0,0.00019178,2]
[374633999,1753390239248,-460.0,0.00019178,2]
[374634000,1753390239257,-460.0,0.00019178,2]
[374634001,1753390239267,-460.0,0.00019178,2]
[374634002,1753390239279,-753.36408695,0.00019178,2]
[374634003,1753390239290,-494.73512862,0.00019178,2]
[374634004,1753390239301,-460.0,0.00019178,2]
[374634005,1753390239310,-397.01017787,0.00019178,2]
[374634006,1753390239322,-460.0,0.00019178,2]
[374634007,1753390239333,-585.07,0.00019178,2]
[374634008,1753390239343,-460.0,0.00019178,2]
[374634009,1753390239353,-460.0,0.00019178,2]
[374634010,1753390239363,-460.0,0.00019178,2]
[374634011,1753390239372,-460.0,0.00019178,2]
[374634012,1753390239382,-460.0,0.00019178,2]
[374634013,1753390239391,-460.0,0.00019178,2]
[374634014,1753390239401,-460.0,0.00019178,2]
[374634015,1753390239411,-460.0,0.00019178,2]
[374634016,1753390239420,-460.0,0.00019178,2]
[374634017,1753390239431,-460.0,0.00019178,2]
[374634018,1753390239440,-460.0,0.00019178,2]
[374634019,1753390239451,-460.0,0.00019178,2]
[374634020,1753390239464,-460.0,0.00019178,2]
[374634021,1753390239474,-460.0,0.00019178,2]
[374634022,1753390239486,-460.0,0.00019178,2]
[374634023,1753390239497,-463.72916045,0.00019178,2]
[374634024,1753390239506,-460.0,0.00019178,2]
[374634025,1753390239516,-483.32,0.00019178,2]
[374634026,1753390239527,-902.51,0.00019178,2]
[374634027,1753390239537,-461.25757545,0.00019178,2]
[374634028,1753390239547,-460.0,0.00019178,2]
[374634029,1753390239558,-460.0,0.00019178,2]
[374634030,1753390239568,-461.61543857,0.00019178,2]
[374634031,1753390239578,-500.0,0.00019178,2]
[374634032,1753390239588,-500.0,0.00019178,2]
[374634033,1753390239598,-500.0,0.00019178,2]
[374634034,1753390239608,-500.0,0.00019178,2]
[374634035,1753390239618,-428.62275804,0.00019178,2]
[374634036,1753390239628,-460.0,0.00019178,2]
[374634037,1753390239638,-460.0,0.00019178,2]
[374634038,1753390239647,-460.0,0.00019178,2]
[374634039,1753390239657,-460.0,0.00019178,2]
[374634040,1753390239667,-460.0,0.00019178,2]
[374634041,1753390239677,-480.42,0.00019178,2]
[374634042,1753390239687,-269.86090348,0.00019178,2]
[374634043,1753390239696,-498.66514797,0.00019178,2]
[374634044,1753390239706,-460.0,0.00019178,2]
[374634045,1753390239716,-460.0,0.00019178,2]
[374634046,1753390239726,-460.0,0.00019178,2]
[374634047,1753390239736,-460.0,0.00019178,2]
[374634048,1753390239758,-460.0,0.00019178,2]
[374634049,1753390239775,-354.20597687,0.00019178,2]
[374634050,1753390239786,-460.0,0.00019178,2]
[374634051,1753390239795,-460.0,0.00019178,2]
[374634052,1753390239805,-460.0,0.00019178,2]
[374634053,1753390239815,-462.64,0.00019178,2]
[374634054,1753390239825,-460.0,0.00019178,2]
[374634055,1753390239834,-787.03,0.00019178,2]
[374634056,1753390239844,-460.0,0.00019178,2]
[374634057,1753390239853,-460.0,0.00019178,2]
[374634058,1753390239863,-460.0,0.00019178,2]
[374634059,1753390239873,-460.0,0.00019178,2]
[374634060,1753390239883,-460.0,0.00019178,2]
[374634061,1753390239892,-460.0,0.00019178,2]
[374634062,1753390239902,-460.0,0.00019178,2]
[374634063,1753390239912,-460.0,0.00019178,2]
[374634064,1753390239922,-460.0,0.00019178,2]
[374634065,1753390239931,-460.0,0.00019178,2]
[374634066,1753390239941,-460.0,0.00019178,2]
[374634067,1753390239951,-460.0,0.00019178,2]
[374634068,1753390239961,-460.0,0.00019178,2]
[374634069,1753390239970,-460.0,0.00019178,2]
[374634070,1753390239979,-460.0,0.00019178,2]
[374634071,1753390239990,-475.02930782,0.00019178,2]
[374634072,1753390239999,-460.0,0.00019178,2]
[374634073,1753390240009,-460.0,0.00019178,2]
[374634074,1753390240018,-460.0,0.00019178,2]
[374634075,1753390240028,-1048.82,0.00019178,2]
[374634076,1753390240038,-460.0,0.00019178,2]
[374634077,1753390240047,-460.0,0.00019178,2]
[374634078,1753390240057,-272.62015471,0.00019178,2]
[374634079,1753390240067,-590.74010506,0.00019178,2]
[374634080,1753390240077,-460.0,0.00019178,2]
[374634081,1753390240087,-460.0,0.00019178,2]
[374634082,1753390240096,-460.0,0.00019178,2]
[374634083,1753390240106,-460.0,0.00019178,2]
[374634084,1753390240116,-460.0,0.00019178,2]
[374634085,1753390240126,-460.0,0.00019178,2]
[374634086,1753390240136,-777.35,0.00019178,2]
[374634087,1753390240146,-460.0,0.00019178,2]
[374634088,1753390240156,-460.0,0.00019178,2]
[374634089,1753390240166,-460.0,0.00019178,2]
[374634090,1753390240176,-302.23559407,0.00019178,2]
[374634091,1753390240185,-460.0,0.00019178,2]
[374634092,1753390240195,-460.0,0.00019178,2]
[374634093,1753390240205,-460.0,0.00019178,2]
[374634094,1753390240215,-460.0,0.00019178,2]
[374634095,1753390240224,-460.0,0.00019178,2]
[374634097,1753390240235,-460.0,0.00019178,2]
[374634098,1753390240246,-460.0,0.00019178,2]
[374634099,1753390240256,-460.7360891,0.00019178,2]
[374634100,1753390240266,-460.0,0.00019178,2]
[374634101,1753390240277,-460.0,0.00019178,2]
[374634102,1753390240291,-460.0,0.00019178,2]
[374634103,1753390240301,-2807.71,0.00019178,2]
[374634104,1753390240311,-460.0,0.00019178,2]
[374634105,1753390240321,-460.0,0.00019178,2]
[374634106,1753390240332,-460.0,0.00019178,2]
[374634107,1753390240343,-460.0,0.00019178,2]